bitfinex-derivatives/quotes_SOLF0:USTF0_20250404
["timestamp","ask_amount","ask_price","bid_price","bid_amount"]
[1743759186198,0.05709031,118.81,118.78,0.05970001]
[1743759186695,8.4187,118.8,118.78,0.05970001]
[1743759187195,0.05709031,118.81,118.78,0.05970001]
[1743759187797,0.05709031,118.81,118.78,8.47900001]
[1743759188095,8.47449031,118.81,118.78,0.05970001]
[1743759189599,0.05709031,118.81,118.78,8.47920001]
[1743759190691,0.05709031,118.81,118.78,0.05970001]
[1743759191193,0.05709031,118.81,118.79,8.4186]
[1743759191792,0.05709031,118.81,118.78,0.05970001]
[1743759191793,0.05709031,118.81,118.8,8.4181]
[1743759194006,2.168,118.87,118.79,4.5414]
[1743759194309,10.5815,118.87,118.83,8.4157]
[1743759194608,2.168,118.87,118.79,6.855]
[1743759194799,8.4142,118.86,118.82,8.4164]
[1743759194999,0.06377916,118.84,118.82,0.06329836]
[1743759195611,0.06377916,118.84,118.83,8.4159]
[1743759196314,6.6488,118.92,118.82,0.06329836]
[1743759196513,8.4107,118.91,118.8,1.42729695]
[1743759197012,8.4107,118.91,118.86,8.4135]
[1743759197411,0.06037557,118.9,118.87,0.05776002]
[1743759197611,10.567,118.92,118.81,1.42714521]
[1743759197812,0.06367826,118.9,118.87,0.06301311]
[1743759199215,8.47477826,118.9,118.87,0.06301311]
[1743759199514,0.06367826,118.9,118.87,0.06301311]
[1743759200417,8.4125,118.88,118.87,0.06301311]
[1743759201115,8.4134,118.87,118.83,8.4157]
[1743759201322,4.3616,118.89,118.8,1.68350168]
[1743759201923,8.4143,118.86,118.82,8.4162]
[1743759202216,4.3616,118.89,118.83,0.05621589]
[1743759202524,8.4153,118.84,118.83,0.05621589]
[1743759202821,0.05661157,118.85,118.75,6.644]
[1743759203022,8.4168,118.82,118.79,8.4185]
[1743759203719,8.47931101,118.82,118.79,8.47851629]
[1743759204224,0.06251101,118.82,118.79,0.06001629]
[1743759206525,0.06251101,118.82,118.8,8.4181]
[1743759206726,0.06251101,118.82,118.79,0.06001629]
[1743759208326,8.47941101,118.82,118.79,0.06001629]
[1743759208723,0.06251101,118.82,118.79,0.06001629]
[1743759208928,8.4181,118.8,118.79,0.06001629]
[1743759209728,8.4178,118.81,118.79,0.06001629]
[1743759209926,0.06251101,118.82,118.79,0.06001629]
[1743759210430,0.06251101,118.82,118.79,8.47851629]
[1743759211029,0.06251101,118.82,118.79,0.06001629]
[1743759212329,0.06251101,118.82,118.79,8.47841629]
[1743759214431,0.06251101,118.82,118.79,0.06001629]
[1743759216936,0.06251101,118.82,118.79,8.47881629]
[1743759217232,0.06251101,118.82,118.79,0.06001629]
[1743759217732,4.3616,118.89,118.79,0.06001629]
[1743759217927,8.4108,118.91,118.86,8.4138]
[1743759218924,0.05720009,118.9,118.87,0.0638614]
[1743759219537,8.46830009,118.9,118.87,0.0638614]
[1743759220635,0.05720009,118.9,118.87,0.0638614]
[1743759220841,0.05720009,118.9,118.87,8.4769614]
[1743759222332,0.05720009,118.9,118.88,8.4123]
[1743759223233,0.05720009,118.9,118.87,8.4767614]
[1743759223440,8.46840009,118.9,118.87,8.4767614]
[1743759224337,0.05720009,118.9,118.87,8.4767614]
[1743759225739,8.46840009,118.9,118.87,0.0638614]
[1743759227040,8.4118,118.89,118.87,0.0638614]
[1743759227943,8.46860009,118.9,118.87,0.0638614]
[1743759228241,0.05720009,118.9,118.87,0.0638614]
[1743759228443,8.4121,118.89,118.87,0.0638614]
[1743759229340,0.05720009,118.9,118.87,0.0638614]
[1743759229541,0.05720009,118.9,118.88,8.4121]
[1743759231249,0.05720009,118.9,118.89,8.4118]
[1743759231551,0.0009842,118.9,118.89,8.4118]
[1743759232046,0.0009842,118.9,118.88,13.0388]
[1743759232447,0.0009842,118.9,118.88,4.6267]
[1743759232748,0.0009842,118.9,118.89,8.4118]
[1743759239755,2.3345,118.98,118.88,4.6267]
[1743759240853,8.4093,118.93,118.92,0.05319867]
[1743759243863,8.4691223,118.94,118.92,0.05319867]
[1743759245563,8.4089,118.93,118.92,0.05319867]
[1743759245963,0.0605223,118.94,118.92,0.05319867]
[1743759246263,8.4690223,118.94,118.92,0.05319867]
[1743759248666,0.0605223,118.94,118.92,0.05319867]
[1743759250468,0.0605223,118.94,118.92,8.46249867]
[1743759250773,0.0605223,118.94,118.92,0.05319867]
[1743759251365,0.0605223,118.94,118.83,232.00185934]
[1743759251571,2.3345,118.98,118.84,3.10981809]
[1743759251771,8.4098,118.92,118.88,8.4122]
[1743759252075,19.1456,118.98,118.84,1.68293503]
[1743759252265,8.4095,118.93,118.85,1.42683526]
[1743759252466,8.47086579,118.93,118.9,0.05474961]
[1743759252669,19.1456,118.98,118.84,1.68293503]
[1743759252971,0.05903011,118.93,118.9,0.06002115]
[1743759253267,0.05903011,118.93,118.86,1.42683453]
[1743759253472,8.4083,118.94,118.9,8.46350073]
[1743759253673,0.0641583,118.93,118.9,8.46350073]
[1743759253873,0.0641583,118.93,118.9,0.05300073]
[1743759254369,0.0641583,118.93,118.91,8.4103]
[1743759254576,0.0641583,118.93,118.9,0.05300073]
[1743759254869,0.0641583,118.93,118.92,8.4096]
[1743759255074,2.3345,118.98,118.9,0.05300073]
[1743759255574,10.7402,118.98,118.94,8.4079]
[1743759255773,2.3345,118.98,118.88,4.3661]
[1743759255971,8.4067,118.97,118.92,8.4091]
[1743759256169,2.3345,118.98,118.88,6.04846877]
[1743759256367,0.06148064,118.94,118.92,0.05985231]
[1743759259876,8.4089,118.93,118.92,0.05985231]
[1743759260875,8.47008064,118.94,118.92,0.05985231]
[1743759261076,0.06148064,118.94,118.92,0.05985231]
[1743759261379,8.4111,118.9,118.88,1.68236877]
[1743759261778,16.8139,118.96,118.88,1.68236877]
[1743759261979,8.4118,118.89,118.88,1.68236877]
[1743759262178,16.8139,118.96,118.85,2.3273]
[1743759262479,8.46687087,118.9,118.87,8.47714498]
[1743759262672,0.05517087,118.9,118.87,0.06414498]
[1743759262870,0.05517087,118.9,118.87,8.47684498]
[1743759263070,0.05517087,118.9,118.87,0.06414498]
[1743759263676,8.412,118.89,118.87,0.06414498]
[1743759264583,0.05517087,118.9,118.87,0.06414498]
[1743759265282,8.4122,118.89,118.87,0.06414498]
[1743759265979,0.05517087,118.9,118.87,0.06414498]
[1743759266683,8.4122,118.89,118.87,0.06414498]
[1743759267683,8.4118,118.89,118.87,0.06414498]
[1743759269887,8.46657087,118.9,118.87,0.06414498]
[1743759270087,0.05517087,118.9,118.87,0.06414498]
[1743759270587,0.05517087,118.9,118.87,2.22174498]
[1743759271085,8.4121,118.89,118.87,2.22174498]
[1743759271683,0.05517087,118.9,118.87,2.22174498]
[1743759271891,0.05517087,118.9,118.88,8.4121]
[1743759272591,0.05517087,118.9,118.89,8.4118]
[1743759275886,2.2054,118.98,118.88,2.328]
[1743759276594,8.4071,118.96,118.91,8.4103]
[1743759277095,0.05323282,118.95,118.92,0.06183549]
[1743759277691,0.05323282,118.95,118.92,8.47123549]
[1743759278701,0.05323282,118.95,118.93,8.4088]
[1743759279694,0.05323282,118.95,118.94,8.4082]
[1743759281796,0.05323282,118.95,118.93,8.4088]
[1743759281998,8.46113282,118.95,118.92,0.06183549]
[1743759282193,0.05323282,118.95,118.92,0.06183549]
[1743759282394,8.4085,118.94,118.92,8.47103549]
[1743759283494,8.4085,118.94,118.92,0.06183549]
[1743759283791,8.4089,118.93,118.92,0.06183549]
[1743759284796,0.05323282,118.95,118.92,0.06183549]
[1743759286696,8.46083282,118.95,118.92,0.06183549]
[1743759289497,8.4083,118.94,118.92,0.06183549]
[1743759289900,0.05323282,118.95,118.92,0.06183549]
[1743759290701,8.46113282,118.95,118.92,0.06183549]
[1743759293302,0.05323282,118.95,118.92,0.06183549]
[1743759294705,8.46113282,118.95,118.92,8.47113549]
[1743759295103,2.1829,118.97,118.92,0.06183549]
[1743759295305,2.1829,118.97,118.94,8.4082]
[1743759295499,2.1829,118.97,118.92,0.06183549]
[1743759295702,10.5893,118.97,118.92,0.06183549]
[1743759295998,10.5893,118.97,118.93,8.4084]
[1743759296392,0.06278288,118.96,118.93,8.4084]
[1743759296594,0.06278288,118.96,118.94,8.4082]
[1743759297299,8.46968288,118.96,118.94,8.4082]
[1743759297509,0.06278288,118.96,118.92,0.06183549]
[1743759297806,8.4089,118.94,118.92,0.06183549]
[1743759298012,8.4089,118.94,118.92,8.47133549]
[1743759298713,8.4079,118.95,118.92,8.47133549]
[1743759299711,0.06278288,118.96,118.92,0.06183549]
[1743759300111,4.76388288,118.96,118.92,0.06183549]
[1743759300315,8.4089,118.93,118.92,0.06183549]
[1743759300517,13.16388288,118.96,118.87,484.02]
[1743759300713,4.7011,118.96,118.87,484.02]
[1743759301415,4.7011,118.96,118.9,8.4108]
[1743759301616,0.06170502,118.93,118.9,8.46778155]
[1743759301814,8.4102,118.92,118.9,8.46778155]
[1743759302114,8.4102,118.92,118.9,0.05698155]
[1743759302817,8.47090502,118.93,118.9,0.05698155]
[1743759303212,0.06170502,118.93,118.92,8.4096]
[1743759303420,0.06170502,118.93,118.92,38.7096]
[1743759305720,0.06170502,118.93,118.92,100.7096]
[1743759307426,4.4922,119.01,118.92,92.3]
[1743759307724,4.4922,119.01,118.93,2.2501]
[1743759307921,8.406,118.98,118.94,8.4079]
[1743759308122,8.406,118.98,118.95,30.34]
[1743759308522,8.46330616,118.98,118.95,30.39382058]
[1743759309724,0.05730616,118.98,118.95,30.39382058]
[1743759309926,0.05730616,118.98,118.95,38.80102058]
[1743759310124,0.05730616,118.98,118.95,8.46102058]
[1743759310424,8.46280616,118.98,118.96,30.32]
[1743759310928,0.05730616,118.98,118.96,30.32]
[1743759311423,0.05730616,118.98,118.97,62.0]
[1743759311619,8.46270616,118.98,118.97,62.0]
[1743759311817,0.05730616,118.98,118.97,62.0]
[1743759312725,0.05730616,118.98,118.97,70.4061]
[1743759321133,0.05730616,118.98,118.97,62.0]
[1743759322633,0.05730616,118.98,118.97,70.4061]
[1743759325730,0.05730616,118.98,118.97,71.82957045]
[1743759326025,0.05730616,118.98,118.97,70.4061]
[1743759326532,6.16e-06,118.98,118.97,71.82973064]
[1743759329434,6.16e-06,118.98,118.97,70.4061]
[1743759329642,6.16e-06,118.98,118.97,71.82913231]
[1743759331033,6.16e-06,118.98,118.97,70.4061]
[1743759331234,6.16e-06,118.98,118.97,80.22911412]
[1743759334146,6.16e-06,118.98,118.97,78.8061]
[1743759334338,6.16e-06,118.98,118.97,80.22937235]
[1743759334747,6.16e-06,118.98,118.97,78.8061]
[1743759334946,6.16e-06,118.98,118.97,80.22939776]
[1743759337245,6.16e-06,118.98,118.97,71.82939776]
[1743759337438,6.16e-06,118.98,118.97,70.4061]
[1743759337639,6.16e-06,118.98,118.97,71.8291692]
[1743759340048,6.16e-06,118.98,118.97,101.8291692]
[1743759340646,6.16e-06,118.98,118.97,100.4061]
[1743759340947,6.16e-06,118.98,118.97,101.82879675]
[1743759341749,6.16e-06,118.98,118.97,101.84879675]
[1743759342250,6.16e-06,118.98,118.97,100.4261]
[1743759342546,6.16e-06,118.98,118.97,101.84916817]
[1743759344149,6.16e-06,118.98,118.97,104.04056817]
[1743759345549,6.16e-06,118.98,118.97,104.0385049]
[1743759345752,6.16e-06,118.98,118.97,112.4385049]
[1743759347148,6.16e-06,118.98,118.97,112.43857217]
[1743759348852,6.16e-06,118.98,118.97,111.0175]
[1743759349051,6.16e-06,118.98,118.97,112.4385123]
[1743759350452,6.16e-06,118.98,118.97,111.0175]
[1743759350643,6.16e-06,118.98,118.97,112.43851005]
[1743759353453,6.16e-06,118.98,118.97,74.01851005]
[1743759353649,6.16e-06,118.98,118.97,103.91851005]
[1743759354958,6.16e-06,118.98,118.97,587.53851005]
[1743759357055,6.16e-06,118.98,118.97,595.93851005]
[1743759358455,2.3103,119.07,118.97,589.21350612]
[1743759358656,2.3103,119.07,118.98,3.10196483]
[1743759358858,2.3103,119.07,119.06,8.3997]
[1743759359054,2.3103,119.07,119.06,38.2997]
[1743759361760,2.3103,119.07,119.06,100.2997]
[1743759362459,0.06285162,119.08,119.07,8.399]
[1743759364165,5.162e-05,119.08,119.07,8.399]
[1743759365667,5.162e-05,119.08,119.07,70.399]
[1743759366664,5.162e-05,119.08,119.07,62.0]
[1743759367266,5.162e-05,119.08,119.07,100.499]
[1743759368171,5.162e-05,119.08,119.07,92.1]
[1743759368772,2.33645162,119.08,119.07,92.1]
[1743759369370,2.33645162,119.08,119.07,100.499]
[1743759374277,5.162e-05,119.08,119.07,100.499]
[1743759378171,5.162e-05,119.08,119.05,0.06013596]
[1743759378983,8.39875162,119.08,119.05,0.06013596]
[1743759379175,5.162e-05,119.08,119.06,62.0]
[1743759379577,8.399,119.07,119.06,62.0]
[1743759379778,5.162e-05,119.08,119.06,62.0]
[1743759379979,5.162e-05,119.08,119.07,29.98]
[1743759380373,5.162e-05,119.08,119.07,38.379]
[1743759382676,5.162e-05,119.08,119.07,29.98]
[1743759383076,5.162e-05,119.08,119.07,91.98]
[1743759384284,5.162e-05,119.08,119.07,100.379]
[1743759394190,5.162e-05,119.08,119.07,105.047]
[1743759394890,5.162e-05,119.08,119.07,100.379]
[1743759396893,5.162e-05,119.08,119.07,111.1379805]
[1743759397898,5.162e-05,119.08,119.07,119.5379805]
[1743759398293,5.162e-05,119.08,119.07,111.1379805]
[1743759400495,5.162e-05,119.08,119.07,109.72063136]
[1743759400695,5.162e-05,119.08,119.07,111.13799271]
[1743759403902,5.162e-05,119.08,119.07,111.13728542]
[1743759405497,5.162e-05,119.08,119.07,111.13719712]
[1743759405898,5.162e-05,119.08,119.07,81.15719712]
[1743759406102,5.162e-05,119.08,119.07,79.74063136]
[1743759406400,5.162e-05,119.08,119.07,109.58063136]
[1743759406603,5.162e-05,119.08,119.07,79.74063136]
[1743759406904,5.162e-05,119.08,119.07,109.60063136]
[1743759407904,5.162e-05,119.08,119.07,109.58063136]
[1743759408304,5.162e-05,119.08,119.07,110.99692984]
[1743759408599,5.162e-05,119.08,119.07,109.58063136]
[1743759408802,5.162e-05,119.08,119.07,110.99694419]
[1743759409004,8.3926,119.17,119.08,16.7966]
[1743759409204,8.3926,119.17,119.15,9.34163136]
[1743759409503,8.3926,119.17,119.16,9.34163136]
[1743759409903,8.4,119.17,119.16,9.34163136]
[1743759410105,10.62968088,119.18,119.16,9.34163136]
[1743759410306,10.62968088,119.18,119.17,9.34163136]
[1743759410801,8.3922,119.17,119.16,9.34163136]
[1743759412103,8.3922,119.17,119.16,71.34163136]
[1743759412397,10.62968088,119.18,119.16,71.34163136]
[1743759412603,2.23798088,119.18,119.16,71.34163136]
[1743759412808,10.62968088,119.18,119.16,79.73403136]
[1743759414305,8.392,119.17,119.16,71.34163136]
[1743759414506,8.392,119.17,119.16,62.0]
[1743759414705,16.792,119.17,119.16,62.0]
[1743759414905,8.3927,119.16,119.15,0.05889621]
[1743759415105,2.23798088,119.18,119.15,0.05889621]
[1743759415410,2.23798088,119.18,119.15,9.40052757]
[1743759415603,2.23798088,119.18,119.16,9.34163136]
[1743759416004,2.23798088,119.18,119.17,62.0]
[1743759416206,19.02998088,119.18,119.16,17.73433136]
[1743759416508,2.23798088,119.18,119.16,9.34163136]
[1743759416707,8.392,119.17,119.16,9.34163136]
[1743759417507,8.4,119.17,119.06,6.08345219]
[1743759417707,41.35623136,119.18,119.13,9.34163136]
[1743759418006,8.3941,119.14,119.13,9.34163136]
[1743759418207,8.3941,119.14,119.12,9.34163136]
[1743759418398,9.34163136,119.16,119.12,9.02943136]
[1743759418598,9.34163136,119.16,119.12,9.34163136]
[1743759418803,0.05592914,119.15,119.13,0.0601606]
[1743759419211,16.84932914,119.15,119.14,62.0]
[1743759420011,8.44932914,119.15,119.14,71.34163136]
[1743759421914,8.44932914,119.15,119.14,62.0]
[1743759422714,8.44932914,119.15,119.14,71.34163136]
[1743759426116,8.44932914,119.15,119.14,62.0]
[1743759427814,8.44932914,119.15,119.14,71.34163136]
[1743759429118,4.82048968,119.21,119.14,71.34163136]
[1743759429317,14.16212104,119.21,119.16,9.34163136]
[1743759429713,8.3925,119.17,119.16,9.34163136]
[1743759432522,8.3925,119.17,119.16,71.34163136]
[1743759437027,8.3925,119.17,119.16,62.0]
[1743759437228,0.06066726,119.18,119.15,0.06401982]
[1743759437430,9.40229862,119.18,119.15,0.06401982]
[1743759440630,8.392,119.17,119.16,62.0]
[1743759441728,17.74163136,119.17,119.15,1.982e-05]
[1743759442027,39.18163136,119.16,119.15,1.982e-05]
[1743759442222,47.57433136,119.16,119.15,1.982e-05]
[1743759442424,55.97433136,119.16,119.15,1.982e-05]
[1743759442834,8.3927,119.16,119.15,1.982e-05]
[1743759443131,8.3927,119.16,119.15,9.34165118]
[1743759444733,8.3927,119.16,119.15,71.34165118]
[1743759446734,8.3927,119.16,119.15,62.00001982]
[1743759447536,8.3927,119.16,119.15,71.34165118]
[1743759450941,8.3927,119.16,119.15,101.14165118]
[1743759452537,8.3927,119.16,119.15,91.80001982]
[1743759452742,8.3927,119.16,119.15,62.00001982]
[1743759454849,8.3956,119.12,119.11,9.34163136]
[1743759455344,8.3952,119.13,119.11,9.34163136]
[1743759455846,8.3952,119.13,119.12,62.0]
[1743759455847,0.05713536,119.13,119.12,62.0]
[1743759456545,8.45193536,119.13,119.12,62.0]
[1743759456942,46.5629,119.18,119.12,62.0]
[1743759457148,9.34163136,119.17,119.12,62.0]
[1743759457444,29.78,119.18,119.13,9.34163136]
[1743759457647,9.34163136,119.18,119.14,9.34163136]
[1743759458048,8.3934,119.15,119.14,9.34163136]
[1743759459150,8.3931,119.16,119.14,17.73573136]
[1743759459352,4.82048968,119.21,119.15,9.34163136]
[1743759459551,4.82048968,119.21,119.19,9.34163136]
[1743759459741,4.82048968,119.21,119.19,39.14163136]
[1743759459942,13.21008968,119.21,119.19,39.14163136]
[1743759460238,4.82048968,119.21,119.2,9.34163136]
[1743759460641,4.82048968,119.21,119.2,71.34163136]
[1743759461045,11.65099188,119.24,119.2,71.34163136]
[1743759461247,233.7755681,119.27,119.23,9.34163136]
[1743759461453,155.81655639,119.27,119.26,9.34163136]
[1743759461749,46.65939596,119.3,119.26,9.34163136]
[1743759461952,46.65939596,119.3,119.28,9.34163136]
[1743759462149,46.65939596,119.3,119.29,9.34163136]
[1743759462349,93.31879193,119.31,119.29,9.34163136]
[1743759462653,93.31879193,119.31,119.3,48.00453136]
[1743759462849,34.95669972,119.31,119.3,48.00453136]
[1743759463048,34.95669972,119.31,119.3,39.62163136]
[1743759463752,34.95669972,119.31,119.3,44.83087708]
[1743759463948,140.0390135,119.32,119.3,44.83087708]
[1743759464357,140.0390135,119.32,119.31,62.0]
[1743759464651,0.0608256,119.32,119.31,62.0]
[1743759466051,8.4422256,119.32,119.31,62.0]
[1743759467554,32.5953,119.35,119.31,62.0]
[1743759468748,0.06284663,119.34,119.32,0.05437007]
[1743759468944,0.06284663,119.34,119.32,30.31437007]
[1743759469150,8.3807,119.33,119.32,30.31437007]
[1743759470251,8.44324663,119.34,119.32,30.31437007]
[1743759470454,0.06284663,119.34,119.32,30.31437007]
[1743759470653,8.3807,119.33,119.32,30.31437007]
[1743759471054,0.06284663,119.34,119.32,30.31437007]
[1743759471557,14.55087708,119.36,119.32,30.31437007]
[1743759472048,8.3807,119.33,119.32,0.05437007]
[1743759472454,8.31430531,119.33,119.32,0.05437007]
[1743759475751,14.60916627,119.34,119.31,62.0]
[1743759476460,8.3814,119.32,119.31,62.0]
[1743759476756,30.24,119.33,119.26,30.24]
[1743759476951,44.79087708,119.33,119.3,0.05859268]
[1743759477259,0.06090293,119.31,119.3,0.05859268]
[1743759477557,8.44300293,119.31,119.3,0.05859268]
[1743759479661,8.44300293,119.31,119.3,62.05859268]
[1743759479962,19.04387708,119.35,119.3,62.05859268]
[1743759480765,8.3821,119.31,119.3,62.05859268]
[1743759485969,14.55087708,119.34,119.3,62.05859268]
[1743759486365,8.3821,119.31,119.3,62.05859268]
[1743759486756,14.55087708,119.34,119.3,62.05859268]
[1743759487162,0.04088544,119.33,119.3,62.05859268]
[1743759487368,8.3821,119.31,119.3,62.05859268]
[1743759487963,8.3821,119.31,119.3,92.31859268]
[1743759488972,0.04088544,119.33,119.3,92.31859268]
[1743759489371,8.3821,119.31,119.3,92.31859268]
[1743759489670,8.3821,119.31,119.3,62.05859268]
[1743759493874,14.59176252,119.33,119.3,62.05859268]
[1743759494366,16.94346252,119.33,119.3,62.05859268]
[1743759494872,8.3821,119.31,119.3,62.05859268]
[1743759497073,8.3821,119.31,119.3,289.86677663]
[1743759498576,8.3821,119.31,119.3,352.3819948]
[1743759499775,17.70302418,119.31,119.3,352.3819948]
[1743759500475,17.70302418,119.31,119.3,62.05859268]
[1743759501177,0.67375167,119.31,119.3,62.05859268]
[1743759501777,9.05585167,119.31,119.3,62.05859268]
[1743759501980,9.32092418,119.31,119.3,62.05859268]
[1743759502678,17.70302418,119.31,119.3,62.05859268]
[1743759503581,17.70302418,119.31,119.3,350.26931764]
[1743759504883,17.70302418,119.31,119.3,62.05859268]
[1743759506582,9.32092418,119.31,119.3,62.05859268]
[1743759506782,9.32092418,119.31,119.3,292.78229827]
[1743759507175,9.32092418,119.31,119.3,301.16519827]
[1743759507381,17.70282418,119.32,119.3,301.16519827]
[1743759508783,17.70282418,119.32,119.31,230.72370559]
[1743759509888,0.04088544,119.33,119.31,230.72370559]
[1743759510882,0.04088544,119.33,119.32,8.3814]
[1743759512787,0.04088544,119.33,119.32,239.10510559]
[1743759513184,0.04088544,119.33,119.32,248.42602977]
[1743759515088,0.04088544,119.33,119.32,305.91304914]
[1743759515288,0.00241822,119.33,119.32,305.91304914]
[1743759518888,8.3782,119.37,119.34,8.3794]
[1743759519089,9.32092418,119.38,119.34,47.72032418]
[1743759519390,9.32092418,119.39,119.35,8.3792]
[1743759519591,9.32092418,119.39,119.35,17.70012418]
[1743759519987,8.3772,119.38,119.36,0.0646703]
[1743759520391,8.3772,119.38,119.36,8.4431703]
[1743759521090,9.32092418,119.41,119.37,38.3776]
[1743759521592,9.32092418,119.4,119.37,38.3776]
[1743759521895,8.3767,119.39,119.37,38.43977879]
[1743759523191,16.7601,119.35,119.29,348.38808255]
[1743759523492,9.32092418,119.3,119.29,264.06808898]
[1743759523789,49.12382418,119.3,119.29,122.21643498]
[1743759523992,57.50382418,119.3,119.29,28.22733498]
[1743759524995,57.50382418,119.3,119.29,14.90833498]
[1743759525296,57.50382418,119.3,119.28,350.46802735]
[1743759525297,8.3836,119.29,119.28,0.05851595]
[1743759525497,8.3836,119.29,119.28,1.595e-05]
[1743759526794,686.07174861,119.29,119.28,1.595e-05]
[1743759528600,279.2447985,119.29,119.28,1.595e-05]
[1743759528801,287.6247985,119.29,119.28,1.595e-05]
[1743759529195,8.3864,119.25,119.24,62.0]
[1743759529400,45.95762469,119.27,119.19,528.31762469]
[1743759529701,8.3885,119.22,119.19,528.31762469]
[1743759530193,45.95762469,119.27,119.19,536.70812469]
[1743759530391,0.05431477,119.22,119.2,4.54618186]
[1743759530593,0.06130674,119.22,119.2,2.31708186]
[1743759530798,11.63760815,119.22,119.2,2.31708186]
[1743759532004,8.44990674,119.22,119.2,2.31708186]
[1743759532197,0.06130674,119.22,119.2,2.31708186]
[1743759532395,0.06130674,119.22,119.21,62.0]
[1743759533403,0.06130674,119.22,119.21,76.57762469]
[1743759533603,92.61041134,119.25,119.23,8.3878]
[1743759534104,92.61041134,119.25,119.23,22.96542469]
[1743759534296,92.61041134,119.27,119.24,8.3871]
[1743759534699,92.66979934,119.27,119.24,8.44848889]
[1743759535204,101.05509934,119.27,119.24,8.44848889]
[1743759535801,92.61041134,119.25,119.24,0.06138889]
[1743759536405,92.61041134,119.25,119.24,8.44808889]
[1743759536702,92.61041134,119.25,119.24,0.06138889]
[1743759536904,92.61041134,119.25,119.24,62.06138889]
[1743759537304,254.20302629,119.25,119.24,62.06138889]
[1743759538599,243.57702629,119.25,119.24,62.06138889]
[1743759538805,58.15561815,119.26,119.24,62.06138889]
[1743759539106,0.059388,119.27,119.25,45.89762469]
[1743759539606,0.059388,119.27,119.26,8.3857]
[1743759542205,0.059388,119.27,119.25,54.28362469]
[1743759542512,0.059388,119.27,119.24,62.06138889]
[1743759542808,8.3864,119.25,119.24,62.06138889]
[1743759543806,8.386,119.26,119.24,62.06138889]
[1743759544711,8.386,119.26,119.24,70.44848889]
[1743759545313,8.386,119.26,119.24,62.06138889]
[1743759545511,0.059388,119.27,119.24,62.06138889]
[1743759546214,8.3857,119.26,119.24,62.06138889]
[1743759547115,8.3857,119.26,119.24,70.44838889]
[1743759547714,8.444988,119.27,119.25,8.3862]
[1743759548314,8.444988,119.27,119.24,70.44808889]
[1743759548516,0.059388,119.27,119.24,70.44808889]
[1743759548718,0.059388,119.27,119.24,62.06138889]
[1743759549621,8.3864,119.25,119.24,62.06138889]
[1743759551422,14.57762469,119.25,119.19,482.36]
[1743759551816,31.16,119.26,119.19,496.93762469]
[1743759552019,31.16,119.26,119.21,8.3887]
[1743759552322,31.16,119.26,119.22,62.0]
[1743759552522,8.3874,119.24,119.22,62.05698513]
[1743759553123,8.3878,119.23,119.22,62.05698513]
[1743759554020,8.3873,119.24,119.22,62.05698513]
[1743759554427,0.06007538,119.25,119.22,70.44498513]
[1743759554723,8.44687538,119.25,119.22,70.44498513]
[1743759554924,0.06007538,119.25,119.22,70.44508513]
[1743759555224,8.3871,119.24,119.22,70.44508513]
[1743759556625,8.3871,119.24,119.22,97.44508513]
[1743759556920,8.44677538,119.25,119.22,89.05698513]
[1743759557126,0.06007538,119.25,119.23,8.3876]
[1743759557524,0.06007538,119.25,119.22,89.05698513]
[1743759557722,8.3871,119.24,119.22,97.44518513]
[1743759558121,0.06007538,119.25,119.22,89.05698513]
[1743759558423,8.44677538,119.25,119.23,8.3875]
[1743759559426,0.06007538,119.25,119.22,89.05698513]
[1743759559625,0.06007538,119.25,119.22,27.05698513]
[1743759559822,8.393,119.16,119.13,8.3944]
[1743759560026,31.12,119.2,119.12,14.57762469]
[1743759560221,45.79762469,119.21,119.14,14.57762469]
[1743759560423,8.3902,119.2,119.17,8.3913]
[1743759561026,8.44350622,119.2,119.17,8.45385819]
[1743759561228,0.05330622,119.2,119.18,8.3913]
[1743759561929,0.05330622,119.2,119.18,8.3911]
[1743759562429,8.44350622,119.2,119.18,8.3911]
[1743759562730,8.44350622,119.2,119.19,62.0]
[1743759564526,8.3913,119.18,119.17,0.06255819]
[1743759567333,8.3913,119.18,119.17,62.06255819]
[1743759570732,8.391,119.19,119.17,70.45455819]
[1743759571127,8.391,119.19,119.17,62.06255819]
[1743759571325,8.3913,119.18,119.17,62.06255819]
[1743759574639,8.391,119.19,119.17,62.06255819]
[1743759574837,8.391,119.19,119.17,70.45445819]
[1743759575337,8.391,119.19,119.17,62.06255819]
[1743759576241,8.3913,119.18,119.17,62.06255819]
[1743759576538,8.3913,119.18,119.17,0.06255819]
[1743759579642,8.3913,119.18,119.17,62.06255819]
[1743759580045,8.3913,119.18,119.17,0.06255819]
[1743759583146,8.3913,119.18,119.17,62.06255819]
[1743759586546,0.05330622,119.2,119.17,70.45415819]
[1743759587149,8.44370622,119.2,119.17,70.45415819]